Cogmind - Beta 13 @@@ ROGUE MODE // 2024.05.30 @ 10:36:47 Player: JP Result: Self-destructed Performance ------------- Evolutions (4) 2000 Regions Visited (13) 2600 Robots Destroyed (66) 330 Value Destroyed (3334) 3334 Prototype IDs (29) 580 Alien Tech Used (0) 0 Bonus (3118) 3118 TOTAL SCORE: 11962 Bonus ------- High Alert Combat Kills 149 Follower Combat Kills 389 Entered Garrisons 800 Used RIF Installer 1500 Aligned with FarCom 300 Friendly Fire -20 Cogmind --------- Core Integrity 299/850 Matter 300/300 Energy 100/100 System Corruption 0% Temperature Cool (0) Movement Core (350) Ox6 Location -6/Garrison Parts ------- > --- POWER (2) -------- (None) > --- PROPULSION (4) --- (None) > --- UTILITY (6) ------ Large Storage Unit Improved Melee Analysis Suite Relay Coupler [Grunt] (22) Relay Coupler [Brawler] (15) > --- WEAPON (3) ------- (None) > --- INVENTORY (15) --- Improved Deuterium Engine Light Fission Core Huge Storage Unit Improved Utility Shielding Authchip [R/Combat] Authchip [R/Combat] Relay Coupler [Swarmer] (37) Relay Coupler [Cutter] (28) Relay Coupler [Grunt] (39) Relay Coupler [Duelist] (29) Relay Coupler [Sentry] (29) Supersonic Drone Bay (1/1) Peak State ------------ > --- POWER ------------ Light Nuclear Core > --- PROPULSION ------- Improved Medium Treads Carbon-fiber Leg Carbon-fiber Leg VTOL Module > --- UTILITY ---------- Large Storage Unit Targeting Computer Improved Melee Analysis Suite Improved Medium Armor Plating Relay Coupler [Grunt] Relay Coupler [Brawler] > --- WEAPON ----------- Plasma Rifle Thermic Laser Spear > --- INVENTORY -------- Light Deuterium Engine Improved Deuterium Engine Light Fission Core Huge Storage Unit Improved Utility Shielding Authchip [R/Combat] Authchip [R/Combat] Relay Coupler [Swarmer] Relay Coupler [Cutter] Relay Coupler [Grunt] Relay Coupler [Duelist] Relay Coupler [Sentry] Supersonic Drone Bay [Rating: 50] Favorites ----------- Power Light Nuclear Core Engine Cooled Ion Engine Power Core Light Nuclear Core Propulsion Carbon-fiber Leg Treads Light Treads Leg Carbon-fiber Leg Flight Unit VTOL Module Utility Relay Coupler [Grunt] Device Improved Heat Sink Storage Large Storage Unit Processor Improved Targeting Computer Hackware Relay Coupler [Grunt] Protection Medium Armor Plating Weapon Beam Rifle Energy Gun Beam Rifle Energy Cannon Advanced Beam Cannon Ballistic Gun Gauss Rifle Launcher Missile Launcher Special Weapon Remote Datajack Slashing Weapon Makeshift Sword Piercing Weapon Spear Special Melee Weapon Improved Datajack Build | -11 -10 -10 -10 -9 -8 -8 -8 -7 -7 -7 -7 -6 -6 ------- Run | Yrd Mat Min Exi Min Mat Gar Mat Fac Gar Fac Gar Fac Gar Slots Evolved 8 | . . . . . 4 . . 2 . . . 2 . Power 1 | . . . . . . . . . . . . 1 . Propulsion 2 | . . . . . 2 . . . . . . . . Utility 4 | . . . . . 2 . . 2 . . . . . Weapon 1 | . . . . . . . . . . . . 1 . Parts Attached 107 | 3 10 3 2 1 7 23 23 10 5 4 11 4 1 Power 10 | . 2 1 . . . 1 3 . 1 . 1 . 1 Engine 4 | . 2 . . . . . 1 . . . . . 1 Core 6 | . . 1 . . . 1 2 . 1 . 1 . . Reactor . | . . . . . . . . . . . . . . Propulsion 37 | 2 . 2 . 1 1 7 12 2 1 3 5 1 . Treads 4 | 2 . . . . . 1 . . . . . 1 . Leg 32 | . . 2 . 1 1 6 12 2 1 3 4 . . Wheel . | . . . . . . . . . . . . . . Hover . | . . . . . . . . . . . . . . Flight 1 | . . . . . . . . . . . 1 . . Utility 27 | 1 2 . 2 . 1 8 2 6 1 1 2 1 . Device 6 | . 1 . . . 1 4 . . . . . . . Storage 4 | 1 . . 1 . . . 2 . . . . . . Processor 3 | . . . . . . 1 . 1 . . 1 . . Hackware 9 | . . . . . . 2 . 5 1 . 1 . . Protection 5 | . 1 . 1 . . 1 . . . 1 . 1 . Artifact . | . . . . . . . . . . . . . . Weapon 33 | . 6 . . . 5 7 6 2 2 . 3 2 . Energy Gun 17 | . 5 . . . 5 4 1 . . . . 2 . Energy Cannon 2 | . . . . . . . 2 . . . . . . Ballistic Gun 2 | . 1 . . . . . . . . . 1 . . Ballistic Cannon . | . . . . . . . . . . . . . . Launcher 3 | . . . . . . . 1 . 1 . 1 . . Special Weapon 2 | . . . . . . . . 1 1 . . . . Impact Weapon . | . . . . . . . . . . . . . . Slashing Weapon 1 | . . . . . . 1 . . . . . . . Piercing Weapon 2 | . . . . . . . 1 . . . 1 . . Special Melee Weapon 4 | . . . . . . 2 1 1 . . . . . Unidentified Prototypes 4 | . . . . . 1 . 3 . . . . . . Corrupted Parts 2 | . . . . . . . . . . . 2 . . System Corruption 2 | . . . . . . . . . . . 2 . . Parts Lost 35 | . 1 1 . . 1 2 7 2 1 . 9 5 6 Power 5 | . . . . . . . 2 . . . 1 1 1 Propulsion 13 | . . 1 . . . 1 3 . . . 4 3 1 Utility 8 | . . . . . 1 1 . 2 . . 2 . 2 Weapon 9 | . 1 . . . . . 2 . 1 . 2 1 2 Highest Loss Streak 8 | . 1 1 . . 1 1 3 1 1 . 8 5 6 To Critical Strikes 1 | . . . . . . . . . . . 1 . . Average Slot Usage (%) 93 | . 92 99 100 100 70 96 90 93 99 100 89 84 49 Engine 2 | . 14 . . . . . 2 7 7 . . . 3 Core 7 | . . 13 14 14 9 9 5 . . 7 6 5 . Treads 2 | . 28 8 . . . . . . . . . 2 3 Leg 25 | . . 19 28 28 20 34 33 30 30 30 24 12 . Device 1 | . . . . . 9 7 . . . . . . . Storage 9 | . 14 14 14 14 9 9 9 7 7 7 7 6 6 Processor 5 | . . . . . . 8 9 6 7 7 7 13 9 Hackware 11 | . . . . . . 3 14 24 30 29 20 13 13 Protection 5 | . 7 14 14 14 5 5 . . . . 5 3 3 Energy Gun 11 | . 21 28 28 28 16 16 . . . . . 8 8 Special Weapon 1 | . . . . . . . . 3 3 7 5 . . Piercing Weapon 2 | . . . . . . . 4 7 7 7 7 5 . Naked Turns . | . . . . . . . . . . . . . . Heaviest Build 42 | 5 21 23 28 28 29 25 34 34 36 32 35 42 40 Greatest Support 65 | 40 40 40 20 23 33 53 60 65 65 65 65 30 30 Greatest Overweight (x) 11 | . . 1 1 1 1 . 1 . . . 11 1 9 Average Overweight (x) . | . . . 1 1 . . . . . . . 1 2 Largest Inventory Capacity 15 | 8 8 8 10 10 10 10 15 15 15 15 15 15 15 Average Capacity 11 | 6 8 8 8 10 10 10 12 15 15 15 15 15 15 Most Carried 15 | 8 8 8 8 10 10 10 15 15 15 15 15 15 12 Average Carried 11 | 5 7 7 7 9 9 9 11 13 14 14 14 12 12 Final Capacity 15 | 8 8 8 10 10 10 10 15 15 15 15 15 15 15 Final Carried 15 | 8 8 7 8 10 10 10 15 15 15 15 11 13 12 Class Distribution -------------------- 41% | Mutant 36% | Bothacker-Mutant 21% | Scavenger-Mutant Dominant Class ---------------- Mutant | -10/Materials Mutant | -10/Mines Mutant | -10/Exiles Mutant | -9/Mines Mutant | -8/Materials Scavenger-Mutant | -8/Garrison Bothacker-Mutant | -8/Materials Bothacker-Mutant | -7/Factory Bothacker-Mutant | -7/Garrison Bothacker-Mutant | -7/Factory Bothacker-Mutant | -7/Garrison Mutant | -6/Factory Mutant | -6/Garrison Resources | -11 -10 -10 -10 -9 -8 -8 -8 -7 -7 -7 -7 -6 -6 ----------- Run | Yrd Mat Min Exi Min Mat Gar Mat Fac Gar Fac Gar Fac Gar Matter Collected 1510 | 111 253 30 . 20 65 260 221 40 222 23 250 15 . Remotely . | . . . . . . . . . . . . . . Salvage Created 2810 | . 272 126 . 104 98 627 992 119 123 . 269 23 57 Parts 168 | . 15 8 . 4 4 44 57 9 3 . 19 4 1 Haulers Intercepted 5 | . 1 . . . 1 . 3 . . . . . . Recyclers Shooed . | . . . . . . . . . . . . . . Parts Field Recycled . | . . . . . . . . . . . . . . Retrieved Matter . | . . . . . . . . . . . . . . Parts Self-Destructed . | . . . . . . . . . . . . . . Prevented . | . . . . . . . . . . . . . . Kills | -11 -10 -10 -10 -9 -8 -8 -8 -7 -7 -7 -7 -6 -6 ------- Run | Yrd Mat Min Exi Min Mat Gar Mat Fac Gar Fac Gar Fac Gar Combat Hostiles Destroyed 68 | . 4 5 . 2 1 14 13 3 17 . 8 . 1 Melee 22 | . . . . . . . 11 3 3 . 5 . . Guns 26 | . 3 5 . 2 1 13 1 . . . . . 1 Cannons 1 | . . . . . . . 1 . . . . . . AOE 19 | . 1 . . . . 1 . . 14 . 3 . . Classes Destroyed 14 | . 3 1 . 1 . 1 5 1 1 . . 1 . Worker 2 | . . . . . . . 1 1 . . . . . Builder 3 | . 1 . . . . . 2 . . . . . . Hauler 5 | . 1 . . . 1 . 3 . . . . . . Recycler 2 | . . . . . . . 2 . . . . . . Operator 1 | . . . . . . . . . . . . 1 . Watcher 1 | . . . . . . . 1 . . . . . . Swarmer 13 | . . 3 . . . 3 . 2 . . 5 . . Cutter 2 | . . . . . . . 2 . . . . . . Grunt 21 | . 4 2 . 1 1 5 8 . . . . . . Duelist 1 | . . . . 1 . . . . . . . . . Sentry 8 | . . . . . . 6 2 . . . . . . Hunter 4 | . . . . . . . 1 . . . 2 . 1 Programmer 3 | . . . . . . . . 1 1 . 1 . . Assembled 16 | . . . . . . . . . 16 . . . . Best Kill Streak 9 | . 3 3 . 1 1 2 4 2 9 . 3 1 1 Combat Bots Only 9 | . 2 3 . 1 1 2 4 2 9 . 3 . 1 Max Kills in Single Turn 5 | . 1 1 . 1 1 1 1 1 5 . 2 1 1 Gunslinging . | . . . . . . . . . . . . . . Exploded 5 | . 1 . . . . 1 . . 5 . 2 . . Melee 1 | . . . . . . . 1 1 1 . 1 . . Uniques/NPCs Destroyed . | . . . . . . . . . . . . . . Combat | -11 -10 -10 -10 -9 -8 -8 -8 -7 -7 -7 -7 -6 -6 -------- Run | Yrd Mat Min Exi Min Mat Gar Mat Fac Gar Fac Gar Fac Gar Hostile Shots Fired 520 | . 21 25 . 18 8 54 106 35 34 6 107 33 73 Missed 137 | . 3 7 . 1 2 17 35 12 12 1 26 9 12 Damage Taken 6142 | . 289 179 . 251 95 499 1124 308 488 77 1373 458 1001 Core 1597 | . 12 22 . 34 34 49 238 90 124 16 427 18 533 Absorbed by Shields 15 | . . . . . . . . . . . . . 15 Redirected to Shielding 100 | . . . . . . . . . . . 100 . . Core Remaining (%) 54 | 100 . . . 72 . . 41 . . . 6 . . Volleys Fired 141 | . 16 10 . 9 5 35 18 . 10 7 20 . 11 Largest 2 | . 2 2 . 2 2 2 1 . 1 1 1 . 2 Hottest 160 | . 112 112 . 112 112 122 68 . 36 5 36 . 160 Shots Fired 219 | . 32 20 . 15 10 69 18 . 10 7 20 . 18 Gun 172 | . 32 20 . 15 10 69 8 . . . . . 18 Cannon 10 | . . . . . . . 10 . . . . . . Launcher 9 | . . . . . . . . . 6 . 3 . . Special 28 | . . . . . . . . . 4 7 17 . . Kinetic 13 | . 13 . . . . . . . . . . . . Thermal 139 | . 6 20 . 15 10 60 10 . . . . . 18 Explosive 6 | . . . . . . . . . 6 . . . . Electromagnetic 33 | . 13 . . . . 9 8 . . . 3 . . Robot Hit Streak 18 | . 5 5 . 3 7 18 6 . 3 2 4 . 5 Robot Miss Streak 3 | . 2 2 . 2 2 3 3 . 2 2 2 . 2 Penetration Max . | . . . . . . . . . . . . . . Secondary Targets 2 | . . . . . . 2 . . . . . . . Max Gunslinging Chain 1 | . . . . . . 1 . . . . . . . Shots Hit Robots 201 | . 19 14 . 8 8 41 52 12 10 4 18 1 14 Core Hits 114 | . 9 7 . 5 4 19 26 4 23 . 11 1 5 Critical Kills . | . . . . . . . . . . . . . . Critical Parts Destroyed . | . . . . . . . . . . . . . . Critical Strikes 9 | . . 1 . . . 1 4 1 . . 2 . . Burn 2 | . . 1 . . . 1 . . . . . . . Sever 2 | . . . . . . . 2 . . . . . . Impale 5 | . . . . . . . 2 1 . . 2 . . Melee Attacks 139 | . . . . . . 8 58 20 8 8 32 5 . Impact . | . . . . . . . . . . . . . . Slashing 35 | . . . . . . 1 34 . . . . . . Piercing 92 | . . . . . . . 22 17 8 8 32 5 . Sneak Attacks 15 | . . . . . . 4 10 1 . . . . . Combat Hostiles . | . . . . . . . . . . . . . . Follow-up Attacks . | . . . . . . . . . . . . . . Damage Inflicted 5458 | . 315 219 . 114 114 764 1721 340 1067 34 461 33 276 Guns 1747 | . 277 219 . 114 114 669 83 . . . . . 271 Cannons 124 | . . . . . . . 124 . . . . . . Explosions 1180 | . 38 . . . . 95 . . 852 . 195 . . Melee 2402 | . . . . . . . 1514 340 215 34 266 33 . Ramming 5 | . . . . . . . . . . . . . 5 Kinetic 47 | . 47 . . . . . . . . . . . . Thermal 1653 | . 96 219 . 114 114 715 124 . . . . . 271 Explosive 852 | . . . . . . . . . 852 . . . . Electromagnetic 499 | . 172 . . . . 49 83 . . . 195 . . Impact . | . . . . . . . . . . . . . . Slashing 648 | . . . . . . . 648 . . . . . . Piercing 1754 | . . . . . . . 866 340 215 34 266 33 . Highest Corruption 11 | . . . . . . . 2 3 5 5 11 . . Average Corruption 4 | . . . . . . . 2 2 3 5 6 . . Corruption Purged . | . . . . . . . . . . . . . . Corruption Blocked . | . . . . . . . . . . . . . . Effects 40 | . . . . . . . 2 4 8 11 15 . . Message Errors 10 | . . . . . . . 1 1 4 2 2 . . Matter Fused 10 | . . . . . . . 1 2 2 . 5 . . Heat Flow Errors 7 | . . . . . . . . . . 5 2 . . Energy Discharges 4 | . . . . . . . . . . . 4 . . Data Loss (minor) 6 | . . . . . . . . 1 2 2 1 . . Data Loss (major) 3 | . . . . . . . . . . 2 1 . . Overload Shots . | . . . . . . . . . . . . . . Overflow Damage 176 | . 6 . . . . . 39 58 67 . 6 . . Projectiles . | . . . . . . . . . . . . . . Explosions 69 | . 6 . . . . . . . 62 . 1 . . Melee 107 | . . . . . . . 39 58 5 . 5 . . Knockbacks . | . . . . . . . . . . . . . . Impact . | . . . . . . . . . . . . . . Kinetic . | . . . . . . . . . . . . . . Secondary . | . . . . . . . . . . . . . . Self-Inflicted Damage 224 | . 33 . . . . . . . 138 . 53 . . Shots 8 | . 1 . . . . . . . 4 . 3 . . Rammed 9 | . . . . . . . . . . . . . 9 Targets Rammed 9 | . . . . . . . . . . . . . 9 Kicked . | . . . . . . . . . . . . . . Crushed . | . . . . . . . . . . . . . . Highest Temperature 414 | . 198 360 . 412 48 114 214 . 7 251 182 . 414 Average Temperature 103 | . 54 154 . 210 32 38 79 . 7 95 82 . 188 Received Heat Transfer 1321 | . 126 60 . 84 54 189 504 12 40 36 . 216 . Effects 4 | . . . . 3 . . . . . . . . 1 Shutdowns 1 | . . . . 1 . . . . . . . . . Interference 2 | . . . . 2 . . . . . . . . . Damage (minor) 1 | . . . . . . . . . . . . . 1 Siege Activations . | . . . . . . . . . . . . . . Robots Corrupted . | . . . . . . . . . . . . . . Combat Hostiles . | . . . . . . . . . . . . . . Parts Fried 1 | . . . . . . . . . . . 1 . . Impact Corruptions . | . . . . . . . . . . . . . . Robots Melted . | . . . . . . . . . . . . . . Combat Hostiles . | . . . . . . . . . . . . . . Parts Melted 6 | . . 1 . 1 . 1 . . . . . . 3 Heat Transferred 3498 | . 148 629 . 296 296 1207 222 . . . . . 700 Parts Sabotaged . | . . . . . . . . . . . . . . Parts Stolen . | . . . . . . . . . . . . . . Parts Stripped . | . . . . . . . . . . . . . . Power Chain Reactions 2 | . 1 . . . . 1 . . . . . . . Alert | -11 -10 -10 -10 -9 -8 -8 -8 -7 -7 -7 -7 -6 -6 ------- Run | Yrd Mat Min Exi Min Mat Gar Mat Fac Gar Fac Gar Fac Gar Peak Influence 823 | . 149 197 . 50 27 823 633 137 223 167 284 178 35 Initial 401 | . . 57 . . . 20 401 82 23 116 . 149 . Average 204 | . 68 113 . 16 8 485 361 85 171 99 184 155 2 Maximum Alert Level 3 | . . . . . . 3 2 . 1 . 1 . . Low Security (%) 65 | 100 100 100 . 100 100 11 17 100 90 100 28 100 100 Level 1 18 | . . . . . . 26 45 . 9 . 71 . . Level 2 11 | . . . . . . 37 37 . . . . . . Level 3 4 | . . . . . . 24 . . . . . . . Level 4 . | . . . . . . . . . . . . . . Level 5 . | . . . . . . . . . . . . . . High Security . | . . . . . . . . . . . . . . Max Security . | . . . . . . . . . . . . . . Squads Dispatched 6 | . 1 . . . . . 3 . . . . 2 . Investigation 2 | . 1 . . . . . . . . . . 1 . Extermination . | . . . . . . . . . . . . . . Reinforcement 4 | . . . . . . . 3 . . . . 1 . Assault . | . . . . . . . . . . . . . . Garrison . | . . . . . . . . . . . . . . Intercept . | . . . . . . . . . . . . . . Searches Triggered . | . . . . . . . . . . . . . . Construction Impeded 1 | . . . . . . . 1 . . . . . . Haulers Reinforced . | . . . . . . . . . . . . . . Active Scanning Responses . | . . . . . . . . . . . . . . Cargo Convoy Interrupts . | . . . . . . . . . . . . . . Stealth | -11 -10 -10 -10 -9 -8 -8 -8 -7 -7 -7 -7 -6 -6 --------- Run | Yrd Mat Min Exi Min Mat Gar Mat Fac Gar Fac Gar Fac Gar Distress Signals 6 | . . . . . . . 5 1 . . . . . Communications Jammed . | . . . . . . . . . . . . . . Distress Signals . | . . . . . . . . . . . . . . Times Spotted 130 | . 7 5 . 2 2 23 27 10 19 5 22 6 2 Peak Tracking Total 9 | . 2 3 . 2 2 3 7 5 9 3 6 4 2 Tactical Retreats 13 | . 1 1 . . . . 9 . 1 . 1 . . Traps | -11 -10 -10 -10 -9 -8 -8 -8 -7 -7 -7 -7 -6 -6 ------- Run | Yrd Mat Min Exi Min Mat Gar Mat Fac Gar Fac Gar Fac Gar Traps Triggered 6 | . 2 . . . . 2 . . . . 2 . . Indirectly . | . . . . . . . . . . . . . . Trap Hack Attempts . | . . . . . . . . . . . . . . Triggered . | . . . . . . . . . . . . . . Disarmed . | . . . . . . . . . . . . . . Reprogrammed . | . . . . . . . . . . . . . . Reused . | . . . . . . . . . . . . . . Traps Extracted . | . . . . . . . . . . . . . . Installed . | . . . . . . . . . . . . . . Triggered . | . . . . . . . . . . . . . . Most Traps Carried 2 | . . . . 2 2 2 . . . . . . . Machines | -11 -10 -10 -10 -9 -8 -8 -8 -7 -7 -7 -7 -6 -6 ---------- Run | Yrd Mat Min Exi Min Mat Gar Mat Fac Gar Fac Gar Fac Gar Machines Disabled 7 | . . . . . . 4 . . 1 1 1 . . Max in Single Turn 1 | . . . . . . 1 . . 1 1 1 . . Garrison Relay 6 | . . . . . . 4 . . 1 . 1 . . Machines Repaired . | . . . . . . . . . . . . . . Machines Dismantled . | . . . . . . . . . . . . . . Machines Sabotaged . | . . . . . . . . . . . . . . Overloaded Fab Kills . | . . . . . . . . . . . . . . Hacking | -11 -10 -10 -10 -9 -8 -8 -8 -7 -7 -7 -7 -6 -6 --------- Run | Yrd Mat Min Exi Min Mat Gar Mat Fac Gar Fac Gar Fac Gar Machines Accessed 17 | . 1 . 1 . 2 1 4 1 . 3 1 3 . Terminals 9 | . 1 . . . . 1 4 . . 1 1 1 . Fabricators . | . . . . . . . . . . . . . . Repair Stations 1 | . . . . . . . . . . 1 . . . Recycling Units 1 | . . . . . . . . . . . . 1 . Scanalyzers 1 | . . . . . 1 . . . . . . . . Garrison Access 4 | . . . . . 1 . . 1 . 1 . 1 . Total Hacks 39 | . 2 . 1 . 5 2 12 1 . 5 3 8 . Successful 22 | . 1 . 1 . 5 1 6 1 . 1 . 6 . Failed 17 | . 1 . . . . 1 6 . . 4 3 2 . Catastrophic 6 | . . . . . . . 2 . . 2 1 1 . Database Lockouts . | . . . . . . . . . . . . . . Manual 11 | . . . 1 . . . 5 . . 2 . 3 . Terminals 26 | . 2 . . . . 2 12 . . 2 3 5 . Fabricators . | . . . . . . . . . . . . . . Repair Stations 2 | . . . . . . . . . . 2 . . . Recycling Units 2 | . . . . . . . . . . . . 2 . Scanalyzers 4 | . . . . . 4 . . . . . . . . Garrison Access 4 | . . . . . 1 . . 1 . 1 . 1 . Terminal Hacks 11 | . 1 . 1 . . 1 5 . . . . 3 . Record 2 | . . . . . . . . . . . . 2 . Robot Schematic 1 | . . . . . . . . . . . . 1 . Prototype ID Bank 1 | . . . . . . . 1 . . . . . . Open Door 1 | . . . . . . 1 . . . . . . . Branch Access Points 1 | . 1 . . . . . . . . . . . . Alert Level 1 | . . . . . . . 1 . . . . . . Unreport Threat 2 | . . . . . . . 2 . . . . . . Reinforcement Status 1 | . . . . . . . 1 . . . . . . Derelict Proto ID Bank 1 | . . . 1 . . . . . . . . . . Fabricator Hacks . | . . . . . . . . . . . . . . Repair Station Hacks . | . . . . . . . . . . . . . . Recycling Unit Hacks 2 | . . . . . . . . . . . . 2 . Retrieve Matter 1 | . . . . . . . . . . . . 1 . Retrieve Components 1 | . . . . . . . . . . . . 1 . Scanalyzer 4 | . . . . . 4 . . . . . . . . Insert Component 1 | . . . . . 1 . . . . . . . . Analyze 3 | . . . . . 3 . . . . . . . . Garrison Access Hacks 4 | . . . . . 1 . . 1 . 1 . 1 . Unlock Access 4 | . . . . . 1 . . 1 . 1 . 1 . Unauthorized Hacks 1 | . . . . . . . 1 . . . . . . Terminals 1 | . . . . . . . 1 . . . . . . Botnet 1 | . . . . . . . 1 . . . . . . Fabricators . | . . . . . . . . . . . . . . Repair Stations . | . . . . . . . . . . . . . . Recycling Units . | . . . . . . . . . . . . . . Scanalyzers . | . . . . . . . . . . . . . . Garrison Access . | . . . . . . . . . . . . . . Data Cores Recovered 1 | . . . . . . . . . . . . 1 . Used . | . . . . . . . . . . . . . . Hacking Detections 12 | . 1 . . . 2 1 3 . . 2 1 2 . Full Trace Events 2 | . . . . . . . . . . . 1 1 . Feedback Events . | . . . . . . . . . . . . . . Feedback Blocked . | . . . . . . . . . . . . . . Robot Schematics Acquired 1 | . . . . . . . . . . . . 1 . Robots Built . | . . . . . . . . . . . . . . Authchips . | . . . . . . . . . . . . . . Time . | . . . . . . . . . . . . . . Total Robot Build Rating . | . . . . . . . . . . . . . . Part Schematics Acquired 1 | . . . . . 1 . . . . . . . . Parts Built . | . . . . . . . . . . . . . . Authchips . | . . . . . . . . . . . . . . Time . | . . . . . . . . . . . . . . Total Part Build Rating . | . . . . . . . . . . . . . . Parts Repaired . | . . . . . . . . . . . . . . Time . | . . . . . . . . . . . . . . Parts Recycled . | . . . . . . . . . . . . . . Recycled Matter . | . . . . . . . . . . . . . . Retrieved Matter . | . . . . . . . . . . . . . . Retrieved Components 2 | . . . . . . . . . . . . 2 . Parts Scanalyzed 1 | . . . . . 1 . . . . . . . . Part Schematics Acquired 1 | . . . . . 1 . . . . . . . . Parts Damaged . | . . . . . . . . . . . . . . Bothacking | -11 -10 -10 -10 -9 -8 -8 -8 -7 -7 -7 -7 -6 -6 ------------ Run | Yrd Mat Min Exi Min Mat Gar Mat Fac Gar Fac Gar Fac Gar Used RIF Installer 3 | . . . . . . 1 . . 1 . 1 . . Coupler Efficiency 1 | . . . . . . . . . . . 1 . . Hotswap 1 | . . . . . . . . . 1 . . . . Robots Hacked 15 | . . . . . . 1 2 2 . 3 7 . . Non-combat . | . . . . . . . . . . . . . . Combat 15 | . . . . . . 1 2 2 . 3 7 . . Robot Hacks Applied 15 | . . . . . . 1 2 2 . 3 7 . . disrupt_area 1 | . . . . . . . 1 . . . . . . amplify_resonance 2 | . . . . . . . . . . . 2 . . overwrite_iff 3 | . . . . . . . . 2 . . 1 . . formatsys_high 9 | . . . . . . 1 1 . . 3 4 . . Relay Couplers Released 26 | . . . . . . 16 . . 7 . 3 . . Machine Destruction 23 | . . . . . . 16 . . 4 . 3 . . Programmers 3 | . . . . . . . . . 3 . . . . Attached 9 | . . . . . . 2 . 5 1 . 1 . . Fabnet Peak Effective % . | . . . . . . . . . . . . . . Robots Rewired 2 | . . . . . . 2 . . . . . . . Allies Hacked . | . . . . . . . . . . . . . . Hacks Repelled . | . . . . . . . . . . . . . . Allies | -11 -10 -10 -10 -9 -8 -8 -8 -7 -7 -7 -7 -6 -6 -------- Run | Yrd Mat Min Exi Min Mat Gar Mat Fac Gar Fac Gar Fac Gar Total Allies 14 | . . . . . . 3 1 2 . 3 5 . . Largest Group 5 | . . . . . . 3 3 . . 3 5 . . Highest-Rated Group 112 | . . . . . . 85 85 . . 40 112 . . Highest-Rated Ally 39 | . . . . . . 39 38 . . 16 30 . . Total Orders 4 | . . . . . . . . . . . 4 . . STAY 2 | . . . . . . . . . . . 2 . . FOLLOW 2 | . . . . . . . . . . . 2 . . Ally Attacks 97 | . . . . . . 44 16 1 . 4 32 . . Total Damage 1243 | . . . . . . 584 178 . . 35 446 . . Kills 15 | . . . . . . 8 . . . 1 6 . . Allies Corrupted . | . . . . . . . . . . . . . . Allies Melted . | . . . . . . . . . . . . . . Intel | -11 -10 -10 -10 -9 -8 -8 -8 -7 -7 -7 -7 -6 -6 ------- Run | Yrd Mat Min Exi Min Mat Gar Mat Fac Gar Fac Gar Fac Gar Robot Analysis Total . | . . . . . . . . . . . . . . Derelict Logs Recovered 1 | . . . . 1 . . . . . . . . . Drone Launches . | . . . . . . . . . . . . . . Drone Recoveries . | . . . . . . . . . . . . . . Exploration | -11 -10 -10 -10 -9 -8 -8 -8 -7 -7 -7 -7 -6 -6 ------------- Run | Yrd Mat Min Exi Min Mat Gar Mat Fac Gar Fac Gar Fac Gar Turns Passed 6922 | 87 333 562 465 611 197 1167 868 557 371 487 615 433 169 Spaces Moved 3935 | 50 144 286 242 301 93 816 453 355 260 351 333 213 38 Core 25 | 5 . . . . . . . . . . 13 . 7 Treads 311 | 45 144 80 . . . . . . . . . 11 31 Legs 3599 | . . 206 242 301 93 816 453 355 260 351 320 202 . Wheels . | . . . . . . . . . . . . . . Hover . | . . . . . . . . . . . . . . Flight . | . . . . . . . . . . . . . . Fastest Speed 50 | 50 160 160 190 190 120 120 120 120 122 122 120 190 240 Average Speed 144 | 149 160 181 190 190 162 120 120 120 122 122 135 192 266 Slowest Speed 600 | 160 160 240 190 190 190 120 190 122 122 122 600 240 500 Overloaded Moves . | . . . . . . . . . . . . . . Propulsion Burnouts . | . . . . . . . . . . . . . . Robots Hopped . | . . . . . . . . . . . . . . Cave-ins Triggered 1 | . . . . . . . . . . . 1 . . Exploration Rate (%) 33 | 5 34 61 60 65 13 81 37 14 31 12 36 7 10 Regions Visited 13 Branch Regions 3 Pre-discovered Areas 1 | . . . . 1 . . . . . . . . . Known Exits Taken 5 | . 1 . . . 1 . . 1 . 1 . 1 . Unknown Exits Taken 5 | 1 . 1 1 1 . . 1 . . . . . . Scrap Searched 2 | . . 2 . . . . . . . . . . . Spaces Dug 29 | . . . . . . . 1 4 16 3 4 1 . Terrain Destroyed 54 | . 2 . . . . . 1 4 39 3 4 1 . Melee 13 | . . . . . . . 1 4 . 3 4 1 . Projectile . | . . . . . . . . . . . . . . AOE 41 | . 2 . . . . . . . 39 . . . . Terrain Rammed . | . . . . . . . . . . . . . . Walls Destroyed . | . . . . . . . . . . . . . . Machines Disabled . | . . . . . . . . . . . . . . Actions | -11 -10 -10 -10 -9 -8 -8 -8 -7 -7 -7 -7 -6 -6 --------- Run | Yrd Mat Min Exi Min Mat Gar Mat Fac Gar Fac Gar Fac Gar Total 4793 | 62 216 310 248 326 129 936 691 457 294 395 434 230 65 Wait 295 | . 34 5 . 13 15 8 111 63 . 15 23 2 6 Move 3924 | 49 143 285 241 300 93 815 452 355 258 351 332 212 38 Hop . | . . . . . . . . . . . . . . Pick Up 91 | 10 6 3 3 2 4 17 13 7 7 4 9 6 . Fast Attach 24 | 1 3 . . . 3 6 8 . 1 1 1 . . Attach 49 | 2 6 2 1 . 3 8 7 7 1 . 7 4 1 Detach 6 | . 3 . . . . 1 2 . . . . . . Swap 37 | . 1 1 1 1 1 12 8 3 3 3 3 . . Drop 72 | . 4 4 2 1 5 22 14 2 6 6 5 1 . Fire 141 | . 16 10 . 9 5 35 18 . 10 7 20 . 11 Melee 139 | . . . . . . 8 58 20 8 8 32 5 . Ram 9 | . . . . . . . . . . . . . 9 Kick . | . . . . . . . . . . . . . . Crush . | . . . . . . . . . . . . . . Escape Stasis 6 | . . . . . . 4 . . . . 2 . . Rewire . | . . . . . . . . . . . . . . Trap . | . . . . . . . . . . . . . . Miscellaneous . | . . . . . . . . . . . . . . Route ------- -11/Scrapyard -10/Materials (discovered 3 exits: [*Mat] / *Min x2) -10/Mines (discovered 2 exits: [*Mat] / *Exi) -10/Exiles -9/Mines -8/Materials -8/Garrison (discovered 3 exits: *Mat x3) -8/Materials -7/Factory -7/Garrison -7/Factory (discovered 2 exits: *Fac / Gar) -7/Garrison -6/Factory -6/Garrison History --------- Turn | Location | Event 34 | -11/Scrapyard | Discovered new exit (range 15) 88 | -11/Scrapyard | Entered Materials 266 | -10/Materials | Identified exit to Mines 313 | -10/Materials | Build established: Mutant 313 | -10/Materials | Discovered new exit (range 9) 421 | -10/Materials | Entered Mines 609 | -10/Mines | A weapon hastily lodged in a ceiling crevice suddenly fell to the ground 947 | -10/Mines | Discovered new exit (range 6) 975 | -10/Mines | Deemed a non-threat by the Exiles lab entrance 975 | -10/Mines | Discovered new exit (range 5) 983 | -10/Mines | Entered Exiles 1033 | -10/Exiles | Met 8R-AWN 1065 | -10/Exiles | Met EX-HEX 1132 | -10/Exiles | Met EX-BIN 1154 | -10/Exiles | Aligned with FarCom system 1156 | -10/Exiles | Given EX-Vault access code 1200 | -10/Exiles | Opened EX-Vault 1215 | -10/Exiles | Found Supersonic Drone Bay 1256 | -10/Exiles | Warned to stay clear of 0b10 Research branches 1280 | -10/Exiles | Exiles lab attacked by MAIN.C 1425 | -10/Exiles | Discovered new exit (range 14) 1448 | -10/Exiles | Left Exiles lab with Supersonic Drone Bay 1448 | -10/Exiles | Entered Mines 1538 | -9/Mines | Found a hidden stash of uninstalled traps 1744 | -9/Mines | Assembled infested the area 1816 | -9/Mines | Found a damaged Exp. Sensor Array with a note attached 2042 | -9/Mines | Learned location of Storage (-8) 2044 | -9/Mines | Discovered new exit (range 10) 2059 | -9/Mines | Entered Materials 2059 | -8/Materials | Evolved 4 slots: Propulsion x2, Utility x2 2256 | -8/Materials | Identified exit to Garrison 2256 | -8/Materials | Entered Garrison 2348 | -8/Garrison | Triggered checkpoint 2466 | -8/Garrison | Triggered checkpoint 2484 | -8/Garrison | Triggered checkpoint 2512 | -8/Garrison | Build established: Scavenger-Mutant 2576 | -8/Garrison | Discovered new exit (range 10) 2612 | -8/Garrison | Triggered checkpoint 2648 | -8/Garrison | Garrison Relay disabled 2811 | -8/Garrison | Garrison Relay disabled 2936 | -8/Garrison | Triggered checkpoint 3043 | -8/Garrison | Discovered new exit (range 14) 3064 | -8/Garrison | Triggered checkpoint 3088 | -8/Garrison | Garrison Relay disabled 3136 | -8/Garrison | Triggered checkpoint 3172 | -8/Garrison | Triggered checkpoint 3190 | -8/Garrison | Installed Relay Interface Framework 3340 | -8/Garrison | Triggered checkpoint 3372 | -8/Garrison | Garrison Relay disabled 3405 | -8/Garrison | Discovered new exit (range 12) 3423 | -8/Garrison | Entered Materials 3423 | -8/Materials | Accompanied by 3 allies 3537 | -8/Materials | Lost 3 allies 3539 | -8/Materials | Lost 3 parts (1n2w) 3609 | -8/Materials | Core integrity fell below 50% 3871 | -8/Materials | Discovered new exit (range 10) 4236 | -8/Materials | Build established: Bothacker-Mutant 4291 | -8/Materials | Entered Factory 4291 | -7/Factory | Evolved 2 slots: Utility x2 4848 | -7/Factory | Identified exit to Garrison 4848 | -7/Factory | Entered Garrison 4860 | -7/Garrison | Triggered checkpoint 4872 | -7/Garrison | Garrison Relay disabled 4877 | -7/Garrison | Assembled breached garrison interior 4988 | -7/Garrison | Destroyed 7 combat bots 5021 | -7/Garrison | Destroyed 9 combat bots 5021 | -7/Garrison | Discovered new exit (range 8) 5101 | -7/Garrison | Expanded RIF knowledge: Hotswap 5219 | -7/Garrison | Entered Factory 5693 | -7/Factory | Discovered new exit (range 6) 5702 | -7/Factory | Identified exit to Garrison 5706 | -7/Factory | Entered Garrison 5706 | -7/Garrison | Accompanied by 3 allies 5740 | -7/Garrison | Triggered checkpoint 5764 | -7/Garrison | Garrison Relay disabled 5778 | -7/Garrison | Lost 3 allies 5822 | -7/Garrison | Triggered checkpoint 5898 | -7/Garrison | Lost 4 allies 5959 | -7/Garrison | Discovered new exit (range 13) 6116 | -7/Garrison | Crushed by falling debris 6116 | -7/Garrison | Core integrity fell below 50% 6135 | -7/Garrison | Expanded RIF knowledge: Coupler Efficiency 6229 | -7/Garrison | Core integrity fell below 20% 6252 | -7/Garrison | Lost 8 parts (1p4n1u2w) 6283 | -7/Garrison | System corruption reached 10% 6321 | -7/Garrison | Entered Factory 6321 | -6/Factory | Evolved 2 slots: Power x1, Weapon x1 6742 | -6/Factory | Identified exit to Garrison 6754 | -6/Factory | Entered Garrison 6785 | -6/Garrison | Lost 5 parts (1p3n1w) 6813 | -6/Garrison | Build established: Mutant 6903 | -6/Garrison | Core integrity fell below 50% 6909 | -6/Garrison | Lost 6 parts (1p1n2u2w) 6923 | -6/Garrison | Self-destructed Last Messages --------------- Thermic Laser destroyed. Slammed into H-66 Slayer. Imp. Melee Analysis Suite broken. Destabilizing: Short circuit. Slug penetrates Wall. Slammed into H-66 Slayer. Penetrated by Slug. Slammed into H-66 Slayer. Penetrated by Slug. Slammed into H-66 Slayer. Penetrated by Slug. Slammed into H-66 Slayer. Penetrated by Slug. Slammed into H-66 Slayer. Destabilizing: Core damaged (-34). Penetrated by Slug. Slammed into H-66 Slayer. Penetrated by Slug. Slammed into H-66 Slayer. Penetrated by Slug. Map ----- +----------------------------------------------------+ | ?????????????????????????????????????????????????? | | ?????????????????????????????????????????????????? | | ?????????????????????????????????????????????????? | | ?????????????????????????????????????????????????? | | ?????????????????????????????????????????????????? | | ?????????????????????????????????????????????????? | | ?????????????????????????????????????????????????? | | ?????????????????????????????????????????????????? | | ?????????????????????????????????????????????????? | | ?????????????????????????????????????????????????? | | ?????????????????????????????????????????????????? | | ?????????????????????????????????????????????????? | | ???????????????????????????????? ???????????????? | | ???????????????????????????????? #??????????????? | | ???????????????????????????????? #??c???????????? | | ???????????????????????????????# #???c??????????? | | ???????????????????????????????# #??????????????? | | ???????????????????????????????# ??????????????? | | ???????????????????????????????# ???c??????????? | | ???????????????????????????????# #??????????????? | | ????????s??????????????###????h" #??????????????? | | ????????s??????????????# ?????" #??????????????? | | ????????s??????????????# #????h" #??????????????? | | ????????s??????????????# #?????# #??????????????? | | ?????????????????????###+####### ^################ | | ?????????????????????# %%@ | | ?????????????????????# h | | ?????????????????????# % % | | ?????????????????????# %%######################## | | ?????????????????????# % ##??????????????????????? | | ?????????????????????# = #???????????????????????? | | ?????????????????????# #???????????????????????? | | ?????????????????????# #???????????????????????? | | ?????????????????????# #???????????????????????? | | ????????????????g?gg?# #???????????????????????? | | ?????????????????????# #???????????????????????? | | ????????????????????? #???????????????????????? | | ????????????????????? #???????????????????????? | | ???????????????????? #???????????????????????? | | ????????????????????## #???????????????????????? | | ?????????????????????# ????????????????????????? | | ????????????????????? ????????????????????????? | | ????????????????????? ????????????????????????? | | ?????????????????????? ????????????????????????? | | ?????????????????????????????????????????????????? | | ?????????????????????????????????????????????????? | | ?????????????????????????????????????????????????? | | ?????????????????????????????????????????????????? | | ?????????????????????????????????????????????????? | | ?????????????????????????????????????????????????? | +----------------------------------------------------+ Best States ------------- Heat Dissipation 59 Energy Generation 15 Energy Capacity 280 Matter Stores 300 Matter Capacity 300 Sight Range 16 Terrain Scan Density 10 Armor Coverage 225 Utility Shielding 66 Evasion (%) 55 Targeting Accuracy 6 Melee Accuracy 6 Recoil Reduction 2 Relay Coupler Types 4 Relay Coupler Value 127 Authchip Count 2 Item Schematics ----------------- Med. Storage Unit | -8/Materials | Scanalyzed Robot Schematics ------------------ P-60 Hacker | -6/Factory | Hacked Fabricated ------------ Nothing Alien Tech Used ----------------- None Achievements -------------- Error 47 Infiltrator Quick And Dirty Challenges ------------ None Game ------ Seed DeliveryWeldingPlatform Manual? 0 Play Time 01:01:51 Cumulative 31.0 hours Start 2024.05.27 @ 23:50:53 End 2024.05.30 @ 10:36:47 Sessions 2 Manual Loads 0 Difficulty Rogue Special Mode None Game No. 44 Rogue 44 Adventurer 0 Explorer 0 Win Type - Total 1 Types 1/0/0/0/0/0/0/0/0 Lore% 24 Gallery% 34 Achievement% 30 Wizard Run 0 Options --------- Layout 1 ASCII 0 Keyboard 0 Movement Mouse Keybinds 0 Fullscreen 2 Font 24/Smallcaps Map View 50x35 Zoom Use 0% Tactical HUD 0 Map Filters NONE Filters NONE Steam 1 RUN: c3579ca2-1ff9-4b20-8a5e-75f3df466686